bitfinex/quotes_ETHUSD_20250314
["timestamp","ask_amount","ask_price","bid_price","bid_amount"]
[1741987470360,3.05318194,1923.6,1923.3,5.19931]
[1741987470697,3.05318194,1923.6,1923.3,10.39857]
[1741987471201,3.05318194,1923.6,1923.4,5.19907]
[1741987474237,3.05318194,1923.6,1923.3,5.19926]
[1741987475201,3.05318194,1923.6,1923.3,10.39848]
[1741987476220,0.05318194,1923.6,1923.4,0.7777]
[1741987476424,0.05318194,1923.6,1923.5,5.19885]
[1741987476738,0.05318194,1923.6,1923.5,5.25083494]
[1741987477228,0.05318194,1923.6,1923.5,6.02853494]
[1741987477432,1.94e-06,1923.6,1923.5,6.02853494]
[1741987477613,1.94e-06,1923.6,1923.5,5.97655]
[1741987477780,1.94e-06,1923.6,1923.5,7.094117]
[1741987477999,1.94e-06,1923.6,1923.5,7.14608656]
[1741987478282,0.05824276,1924.6,1924.5,5.19615]
[1741987480188,0.05824276,1924.6,1924.5,5.24810624]
[1741987482318,0.05824276,1924.6,1924.5,6.29255686]
[1741987482524,0.05824276,1924.6,1924.5,7.06015686]
[1741987484210,0.05824276,1924.6,1924.5,7.00820062]
[1741987484794,0.05824276,1924.6,1924.5,7.06014774]
[1741987485730,2.76e-06,1924.6,1924.5,7.06014774]
[1741987486019,2.76e-06,1924.6,1924.5,7.00820062]
[1741987486597,2.76e-06,1924.6,1924.5,10.06014384]
[1741987487713,2.76e-06,1924.6,1924.5,16.05014384]
[1741987488028,2.76e-06,1924.6,1924.5,15.99820062]
[1741987499515,2.76e-06,1924.6,1924.5,11.18615]
[1741987500323,0.77910276,1924.6,1924.3,5.19662]
[1741987500523,0.7791,1924.4,1924.1,5.19711]
[1741987500742,5.1969,1924.3,1923.8,5.19803]
[1741987501056,5.97618,1924.2,1923.9,5.19777]
[1741987501262,0.7791,1924.2,1923.9,10.39538]
[1741987501548,0.7791,1924.2,1924.1,5.19723]
[1741987502123,0.7791,1924.2,1924.0,5.1974]
[1741987502345,0.7791,1924.2,1924.1,5.19723]
[1741987502648,5.7061,1924.4,1924.2,10.39368]
[1741987502852,0.7791,1924.4,1924.3,5.19669]
[1741987503045,0.77910276,1924.6,1924.5,5.19615]
[1741987503220,2.76e-06,1924.6,1924.5,5.19615]
[1741987505456,2.76e-06,1924.6,1924.5,5.24810337]
[1741987505755,2.76e-06,1924.6,1924.5,6.37420971]
[1741987505958,2.76e-06,1924.6,1924.5,6.32225634]
[1741987507954,2.76e-06,1924.6,1924.5,6.37420971]
[1741987508159,2.76e-06,1924.6,1924.5,6.32225634]
[1741987508838,2.76e-06,1924.6,1924.5,6.37420724]
[1741987510858,2.76e-06,1924.6,1924.5,5.19615]
[1741987511034,2.76e-06,1924.6,1924.4,5.1963]
[1741987511445,0.7791,1924.5,1924.3,5.1966]
[1741987512366,0.7791,1924.5,1924.2,5.19694]
[1741987513969,5.97528,1924.5,1924.2,5.19694]
[1741987514147,7.09239928,1924.5,1924.2,5.19694]
[1741987515044,7.09239928,1924.5,1924.1,5.19723]
[1741987515445,11.50967928,1924.5,1924.1,5.19723]
[1741987515661,0.7571,1924.4,1924.1,5.19723]
[1741987515971,0.7571,1924.4,1924.0,5.19748]
[1741987517175,5.95355,1924.4,1924.0,5.19748]
[1741987517384,0.595355,1924.3,1924.0,5.19748]
[1741987518674,0.7571,1924.2,1923.8,5.19802]
[1741987518867,5.95406,1924.2,1923.8,10.39595]
[1741987519175,5.19696,1924.2,1923.7,5.19826]
[1741987519397,0.7571,1924.0,1923.7,5.19826]
[1741987519597,0.7571,1924.0,1923.6,5.19832]
[1741987519998,3.7571,1924.0,1923.6,5.19832]
[1741987520176,8.95461,1924.0,1923.6,5.19832]
[1741987520770,5.95493,1923.9,1923.5,5.19885]
[1741987520965,6.850391,1923.9,1923.5,5.19885]
[1741987521207,5.19805,1923.8,1923.4,5.19911]
[1741987521396,6.597561,1923.9,1923.6,5.19849]
[1741987521919,0.7571,1923.7,1923.4,5.19911]
[1741987522710,0.7571,1923.7,1923.4,5.19898]
[1741987523815,0.7571,1923.7,1923.5,5.19865]
[1741987524972,5.7021,1923.9,1923.5,5.19865]
[1741987525185,5.7021,1923.9,1923.6,5.19844]
[1741987526377,6.27231,1923.9,1923.6,5.19843]
[1741987529658,11.47025,1923.9,1923.5,5.19872]
[1741987531359,0.7749,1923.8,1923.4,5.19902]
[1741987531557,1.923705,1923.8,1923.4,5.19897]
[1741987532064,7.121975,1923.8,1923.3,5.19938]
[1741987532272,7.121975,1923.8,1923.3,10.39866]
[1741987532556,0.7749,1923.7,1923.3,10.39866]
[1741987532857,5.97341,1923.7,1923.2,5.19963]
[1741987533166,0.7749,1923.5,1923.1,5.19993]
[1741987533327,0.7749,1923.5,1923.1,10.39969]
[1741987533961,0.7749,1923.5,1923.2,5.19958]
[1741987534165,0.7749,1923.5,1923.2,5.19946]
[1741987534322,0.7749,1923.5,1923.3,5.19934]
[1741987537468,0.7749,1923.5,1923.2,5.19959]
[1741987539192,0.7749,1923.5,1923.2,10.39908]
[1741987540890,0.7749,1923.5,1923.2,5.19949]
[1741987541096,1.372253,1923.5,1923.2,5.19949]
[1741987546365,1.372253,1923.5,1923.0,20.0]
[1741987546366,9.51163,1923.1,1923.0,20.0]
[1741987546567,15.61163,1923.1,1923.0,20.0]
[1741987549392,16.35556425,1923.1,1923.0,20.0]
[1741987554171,15.61163,1923.1,1923.0,20.0]
[1741987554371,17.692774,1923.1,1923.0,20.0]
[1741987560704,22.623774,1923.1,1923.0,20.0]
[1741987570073,22.624774,1923.1,1923.0,20.0]
[1741987571707,17.692774,1923.1,1923.0,20.0]
[1741987571891,22.624774,1923.1,1923.0,20.0]
[1741987573595,20.54363,1923.1,1923.0,20.0]
[1741987575312,6.1,1923.1,1923.0,20.7638]
[1741987575505,10.13124,1923.4,1923.0,25.9639]
[1741987575807,15.33055,1923.4,1923.0,25.96385]
[1741987576009,15.33055,1923.4,1923.1,2.596385]
[1741987576386,10.13124,1923.4,1923.1,2.596385]
[1741987576889,15.33056,1923.4,1923.1,2.596385]
[1741987577297,5.19954,1923.3,1923.0,20.7638]
[1741987583515,10.39912,1923.3,1923.0,20.7638]
[1741987583686,5.19968,1923.2,1923.0,20.7638]
[1741987585113,10.39951,1923.2,1923.0,20.7638]
[1741987585813,5.74993,1923.1,1923.0,20.0]
[1741987586112,9.844891,1923.1,1923.0,20.0]
[1741987586317,15.944891,1923.1,1923.0,20.0]
[1741987589131,20.875891,1923.1,1923.0,20.0]
[1741987589918,19.78093,1923.1,1923.0,20.0]
[1741987597395,20.55093,1923.1,1923.0,20.0]
[1741987602435,20.93330455,1923.1,1923.0,20.0]
[1741987604807,20.16330455,1923.1,1923.0,20.0]
[1741987607336,15.23230455,1923.1,1923.0,20.0]
[1741987607535,21.82412845,1923.1,1923.0,20.0]
[1741987609143,16.89312845,1923.1,1923.0,20.0]
[1741987609316,21.82412845,1923.1,1923.0,20.0]
[1741987610248,16.89312845,1923.1,1923.0,20.0]
[1741987610413,21.82412845,1923.1,1923.0,20.0]
[1741987617077,16.89312845,1923.1,1923.0,20.0]
[1741987617252,21.82412845,1923.1,1923.0,20.0]
[1741987618646,19.78093,1923.1,1923.0,20.0]
[1741987621555,16.78093,1923.1,1923.0,20.0]
[1741987625428,19.78093,1923.1,1923.0,20.0]
[1741987639343,6.1,1923.4,1923.1,6.03166]
[1741987639610,5.19874,1923.6,1923.3,0.8319]
[1741987639872,12.047227,1923.6,1923.3,0.8319]
[1741987640078,10.39752,1923.6,1923.3,0.8319]
[1741987640472,10.39749,1923.6,1923.3,0.8319]
[1741987641449,3.0,1923.5,1923.3,0.8319]
[1741987641779,5.19874,1923.6,1923.3,0.8319]
[1741987642777,10.39751,1923.6,1923.3,0.8319]
[1741987642947,5.19874,1923.6,1923.3,1.44023513]
[1741987647781,3.55,1923.6,1923.3,6.63954513]
[1741987647981,8.74861,1923.6,1923.3,1.44023513]
[1741987649387,5.19764,1924.0,1923.6,5.19844]
[1741987649555,5.19764,1924.0,1923.7,1.334244]
[1741987649759,11.29725,1924.1,1923.7,6.532464]
[1741987649955,11.29725,1924.1,1923.8,6.01232]
[1741987649956,6.1,1924.1,1923.8,6.01232]
[1741987651606,3.0,1924.1,1923.8,0.8144]
[1741987651771,8.19724,1924.1,1923.8,0.8144]
[1741987654098,3.0,1924.1,1923.9,5.95957]
[1741987654416,3.0,1924.1,1924.0,0.595957]
[1741987654585,11.29672,1924.3,1924.0,0.595957]
[1741987657908,3.0,1924.3,1924.1,0.7619]
[1741987658815,3.0,1924.3,1924.1,1.4174337]
[1741987660415,11.29645,1924.4,1924.1,1.4174337]
[1741987660902,16.49311,1924.4,1924.1,1.4174337]
[1741987661678,11.29645,1924.4,1924.1,1.4174337]
[1741987662220,5.19684,1924.3,1924.1,1.4174337]
[1741987662388,5.19684,1924.3,1924.0,0.595957]
[1741987664623,5.19782,1923.9,1923.7,0.7778]
[1741987666052,10.39579,1923.9,1923.7,0.7778]
[1741987666339,4.927,1924.1,1923.5,0.7778]
[1741987666340,5.19835,1923.7,1923.5,0.7778]
[1741987667315,5.1983,1923.8,1923.5,0.7778]
[1741987667505,5.1983,1923.8,1923.5,1.375489]
[1741987667840,3.0,1923.8,1923.5,6.574119]
[1741987668201,13.3964,1923.8,1923.5,1.375489]
[1741987668648,5.19832,1923.7,1923.5,1.375489]
[1741987668805,5.19832,1923.7,1923.5,0.7778]
[1741987669005,8.19815,1923.8,1923.5,0.7778]
[1741987669443,13.39644,1923.8,1923.5,0.7778]
[1741987669741,8.19815,1923.8,1923.5,0.7778]
[1741987671046,3.0,1923.8,1923.5,0.7778]
[1741987671206,8.19807,1923.8,1923.5,0.7778]
[1741987671407,8.19807,1923.8,1923.5,1.895375]
[1741987673942,13.39633,1923.8,1923.5,0.7778]
[1741987674146,8.19807,1923.8,1923.5,0.7778]
[1741987677939,3.0,1923.8,1923.5,0.82978143]
[1741987678146,3.0,1923.8,1923.5,6.02861143]
[1741987678328,8.19805,1923.8,1923.5,0.7778]
[1741987678530,13.39635,1923.8,1923.5,0.7778]
[1741987679250,8.19805,1923.8,1923.5,0.7778]
[1741987680550,13.39628,1923.8,1923.5,0.7778]
[1741987682349,5.19834,1923.7,1923.5,0.7778]
[1741987682552,8.19805,1923.8,1923.5,0.7778]
[1741987682718,13.39629,1923.8,1923.5,0.7778]
[1741987683639,8.19805,1923.8,1923.5,0.7778]
[1741987684017,8.14878151,1923.8,1923.5,1.375475]
[1741987686349,13.34700151,1923.8,1923.5,1.375475]
[1741987686553,8.14878151,1923.8,1923.5,1.375475]
[1741987686960,8.14877151,1923.8,1923.5,1.375475]
[1741987689653,13.34699151,1923.8,1923.5,1.375475]
[1741987689950,13.34699151,1923.8,1923.5,0.7778]
[1741987690373,8.14877151,1923.8,1923.5,0.7778]
[1741987690662,13.34699151,1923.8,1923.5,0.7778]
[1741987690965,8.14877151,1923.8,1923.5,0.7778]
[1741987691327,13.34700151,1923.8,1923.5,0.7778]
[1741987691965,5.19834,1923.7,1923.5,0.7778]
[1741987692122,8.14877151,1923.8,1923.5,0.7778]
[1741987692323,13.34699151,1923.8,1923.5,0.7778]
[1741987692566,8.14877151,1923.8,1923.5,1.37549]
[1741987692734,8.14877151,1923.8,1923.5,1.42747153]
[1741987692941,8.14877151,1923.8,1923.5,1.37549]
[1741987693163,13.34701151,1923.8,1923.5,1.37549]
[1741987694167,8.14877151,1923.8,1923.5,1.37549]
[1741987694679,5.19836,1923.7,1923.5,0.7778]
[1741987694834,5.19896,1923.5,1923.3,1.31457926]
[1741987695034,5.19896,1923.5,1923.3,0.48757926]
[1741987695035,5.19912,1923.4,1923.3,0.48757926]
[1741987695248,5.19912,1923.4,1923.2,0.827]
[1741987695631,5.19893,1923.5,1923.0,20.827]
[1741987695632,5.19986,1923.2,1923.0,20.827]
[1741987695846,10.39974,1923.2,1923.0,20.827]
[1741987696056,10.39974,1923.2,1923.0,20.0]
[1741987696382,5.19986,1923.2,1923.0,20.0]
[1741987696746,5.19993,1923.1,1923.0,20.0]
[1741987696944,9.789908,1923.1,1923.0,20.0]
[1741987697147,16.667508,1923.1,1923.0,20.0]
[1741987698271,17.06015809,1923.1,1923.0,20.0]
[1741987702459,16.28255809,1923.1,1923.0,20.0]
[1741987702659,15.889908,1923.1,1923.0,20.0]
[1741987714121,14.84993,1923.1,1923.0,20.0]
[1741987735455,19.77693,1923.1,1923.0,20.0]
[1741987736163,14.84993,1923.1,1923.0,20.0]
[1741987756220,14.84993,1923.1,1923.0,19.95]
[1741987762747,14.29993,1923.1,1923.0,19.95]
[1741987775097,5.19928,1923.4,1923.1,0.7978]
[1741987775284,5.19869,1923.6,1923.3,0.7978]
[1741987775592,5.19886,1923.5,1923.3,0.7978]
[1741987775798,10.39746,1923.6,1923.3,1.397521]
[1741987775960,5.19869,1923.6,1923.3,1.397521]
[1741987776174,10.39751,1923.6,1923.3,1.397521]
[1741987778269,10.39751,1923.6,1923.3,1.44950727]
[1741987778800,14.29815,1923.8,1923.5,0.7978]
[1741987778999,10.39694,1923.7,1923.5,0.7978]
[1741987779169,5.19846,1923.7,1923.5,0.7978]
[1741987795067,10.39696,1923.7,1923.5,0.7978]
[1741987795228,6.238276,1923.6,1923.3,0.7619]
[1741987795571,5.19887,1923.5,1923.3,0.7619]
[1741987796646,5.19912,1923.4,1923.3,0.7619]
[1741987798354,5.19912,1923.4,1923.0,25.15006]
[1741987798355,10.39843,1923.4,1923.0,25.15006]
[1741987798536,10.39843,1923.4,1923.1,0.8069]
[1741987800229,5.19953,1923.3,1923.1,0.8069]
[1741987801364,5.19953,1923.3,1923.0,19.95]
[1741987801659,5.19977,1923.2,1923.0,19.95]
[1741987802482,5.19993,1923.1,1923.0,19.95]
[1741987802835,8.19993,1923.1,1923.0,19.95]
[1741987803035,9.5399,1923.1,1923.0,19.95]
[1741987804867,10.0899,1923.1,1923.0,19.95]
[1741987805073,9.5334,1923.0,1922.9,5.8e-06]
[1741987806259,9.5334,1923.0,1922.5,0.00163774]
[1741987806260,8.75128,1922.6,1922.5,0.00163774]
[1741987806473,14.45648,1922.6,1922.5,0.00163774]
[1741987807041,14.45648,1922.6,1922.5,7.74e-06]
[1741987808981,14.71874379,1922.6,1922.5,7.74e-06]
[1741987810482,5.2044,1921.5,1921.2,0.8069]
[1741987810781,8.20466,1921.4,1921.2,0.8069]
[1741987811084,3.0,1921.4,1921.2,0.8069]
[1741987812158,0.55,1921.6,1921.2,0.8069]
[1741987812159,8.7548,1921.3,1921.2,0.8069]
[1741987812684,3.0,1921.3,1921.2,0.8069]
[1741987812989,8.2048,1921.3,1921.2,0.8069]
[1741987815087,3.0,1921.3,1921.2,0.8069]
[1741987816853,10.4093,1921.4,1921.2,0.8069]
[1741987818156,5.2048,1921.3,1921.2,0.8069]
[1741987819386,5.20457,1921.4,1921.2,0.8069]
[1741987819578,10.40931,1921.4,1921.2,0.8069]
[1741987820679,6.6651078,1922.2,1921.3,0.7887]
[1741987820876,5.20372,1921.7,1921.5,0.7887]
[1741987821076,3.0,1921.6,1921.5,0.7887]
[1741987821690,8.20353,1921.8,1921.5,0.7887]
[1741987821854,3.0,1921.8,1921.5,0.7887]
[1741987822055,8.20357,1921.8,1921.5,0.7887]
[1741987822391,5.20322,1921.9,1921.5,0.7887]
[1741987822688,5.20322,1921.9,1921.5,6.592157]
[1741987823067,10.40659,1921.9,1921.5,6.592157]
[1741987824189,5.20345,1921.8,1921.5,1.388017]
[1741987824354,5.20345,1921.8,1921.5,1.44005176]
[1741987824690,8.20331,1921.9,1921.5,6.64429176]
[1741987825192,13.40669,1921.9,1921.5,6.64429176]
[1741987825492,8.20331,1921.9,1921.5,6.64429176]
[1741987829278,8.20331,1921.9,1921.5,6.64409176]
[1741987830101,0.7762,1922.4,1921.8,0.8054]
[1741987830301,3.0,1922.2,1921.8,6.00881]
[1741987830473,3.0,1922.2,1921.8,0.8054]
[1741987830673,0.55,1922.2,1921.8,0.8054]
[1741987831769,0.55,1922.2,1921.8,6.00884]
[1741987832904,0.7762,1922.4,1921.9,0.8054]
[1741987833077,3.7762,1922.4,1921.9,0.8054]
[1741987833407,3.0,1922.4,1921.9,0.85742661]
[1741987833804,3.0,1922.4,1921.9,6.06060661]
[1741987833978,3.0,1922.4,1921.6,0.66440918]
[1741987833979,1.4809278,1922.7,1922.1,6.00801]
[1741987834180,4.926,1922.6,1922.1,0.8054]
[1741987834385,3.55,1922.5,1922.1,0.8054]
[1741987834685,8.476,1922.6,1922.1,0.8054]
[1741987835899,8.476,1922.6,1922.1,0.85742116]
[1741987836112,8.476,1922.6,1922.2,5.20231]
[1741987836312,8.476,1922.6,1922.2,0.600771]
[1741987836670,0.55,1922.6,1922.2,0.600771]
[1741987839546,0.55,1922.2,1921.6,0.7619]
[1741987839827,0.55,1921.4,1920.9,0.1161258]
[1741987840029,4.3662,1921.2,1920.9,0.1161258]
[1741987840194,5.20562,1921.0,1920.9,0.0061358]
[1741987840394,5.20562,1921.0,1920.9,5.8e-06]
[1741987840395,10.2765478,1921.0,1920.9,5.8e-06]
[1741987840894,9.57182,1921.0,1920.9,5.8e-06]
[1741987841722,14.54882,1921.0,1920.9,5.8e-06]
[1741987841895,13.73262,1921.0,1920.9,5.8e-06]
[1741987842298,17.043525,1921.0,1920.9,5.8e-06]
[1741987842499,16.236425,1921.0,1920.9,5.8e-06]
[1741987842693,8.527,1921.0,1920.9,5.8e-06]
[1741987844703,13.73262,1921.0,1920.9,5.8e-06]
[1741987847841,19.83262,1921.0,1920.9,5.8e-06]
[1741987851540,9.65,1921.0,1920.9,5.8e-06]
[1741987851731,6.1,1921.2,1920.9,0.8163058]
[1741987851933,5.20463,1921.4,1921.0,5.20549]
[1741987852479,3.0,1921.3,1921.0,5.20549]
[1741987852960,5.20463,1921.4,1921.0,5.20549]
[1741987853166,10.40939,1921.4,1921.0,5.20549]
[1741987853464,3.0,1921.3,1921.0,5.20549]
[1741987856730,3.55,1921.4,1921.0,5.20549]
[1741987856961,8.75463,1921.4,1921.0,5.20549]
[1741987857162,8.75463,1921.4,1920.9,6.0221858]
[1741987857163,5.20488,1921.3,1920.9,11.2280658]
[1741987857335,5.20488,1921.3,1920.9,12.35087238]
[1741987858433,8.75463,1921.4,1921.0,5.20547]
[1741987859633,13.95935,1921.4,1921.0,5.20547]
[1741987860065,3.55,1921.4,1921.0,5.20547]
[1741987860273,8.75464,1921.4,1921.0,5.20547]
[1741987861171,13.95937,1921.4,1921.0,5.20547]
[1741987862767,8.75464,1921.4,1921.0,5.20547]
[1741987863170,8.20427,1921.5,1921.2,5.20507]
[1741987863374,13.40877,1921.5,1921.1,6.02845]
[1741987863872,8.20427,1921.5,1921.1,6.02842]
[1741987864477,13.40877,1921.5,1921.1,6.02842]
[1741987864676,8.20427,1921.5,1921.1,6.02842]
[1741987865189,5.20458,1921.4,1921.1,0.8232]
[1741987865691,8.20427,1921.5,1921.1,6.02854]
[1741987870603,3.0,1921.5,1921.2,5.20505]
[1741987870771,9.689691,1921.5,1921.1,6.02854]
[1741987872193,4.485401,1921.5,1921.1,6.02854]
[1741987872895,9.689761,1921.5,1921.1,11.23372]
[1741987873391,9.689761,1921.5,1921.1,6.02838]
[1741987873607,4.485401,1921.5,1921.2,5.20496]
[1741987873780,6.65,1921.6,1921.3,5.2048]
[1741987873970,6.65,1921.6,1921.4,0.8133]
[1741987874157,12.10216,1922.0,1921.5,5.20417]
[1741987874358,6.1,1922.0,1921.7,5.20363]
[1741987874553,6.1,1922.0,1921.8,6.06867932]
[1741987874754,0.55,1922.1,1921.8,6.06867932]
[1741987874994,6.1,1922.2,1921.8,0.86532932]
[1741987875191,3.0,1922.1,1921.9,5.20306]
[1741987875393,3.0,1922.1,1921.8,11.21982]
[1741987875571,3.0,1922.1,1921.9,5.20299]
[1741987875772,3.0,1922.1,1922.0,5.20291]
[1741987876101,3.0,1922.1,1921.9,5.20311]
[1741987878102,6.1,1922.2,1921.9,5.20311]
[1741987880206,6.65,1922.3,1922.0,5.20281]
[1741987880695,11.85221,1922.3,1921.9,5.20314]
[1741987881270,6.65,1922.3,1921.9,6.324954]
[1741987881507,6.65,1922.3,1922.0,5.2029]
[1741987882004,3.0,1922.5,1922.1,6.0678439]
[1741987882171,8.20178,1922.5,1922.1,0.8653239]
[1741987882366,5.20183,1922.4,1922.1,0.8133]
[1741987882570,8.20173,1922.5,1922.1,6.617526]
[1741987884028,3.0,1922.5,1922.1,1.414916]
[1741987884190,3.0,1922.2,1921.9,6.01636]
[1741987884516,3.0,1922.2,1921.9,6.01628]
[1741987885081,0.55,1922.2,1921.9,0.8133]
[1741987885277,5.20276,1922.1,1921.7,6.01701]
[1741987892626,5.20276,1922.1,1921.7,11.22055]
[1741987893132,5.20276,1922.1,1921.7,6.01684]
[1741987893334,5.20276,1922.1,1921.7,11.22042]
[1741987895226,11.85263,1922.2,1921.8,5.20345]
[1741987895528,18.840575,1922.2,1921.8,5.20345]
[1741987897434,18.840575,1922.2,1921.8,5.25547802]
[1741987897908,8.435385,1922.2,1921.8,5.25547802]
[1741987898105,6.1,1922.2,1921.9,5.20295]
[1741987898602,6.1,1922.2,1922.0,6.02362363]
[1741987900233,6.1,1922.2,1922.0,0.82072363]
[1741987900427,6.1,1922.2,1921.9,5.20295]
[1741987900933,11.30246,1922.2,1921.8,11.17541]
[1741987901228,6.1,1922.2,1921.9,5.20317]
[1741987901736,6.1,1922.2,1921.9,5.20306]
[1741987901921,6.1,1922.2,1921.9,10.40612]
[1741987902535,6.1,1922.2,1922.0,5.20291]
[1741987903731,3.0,1922.3,1922.0,5.20291]
[1741987904729,3.0,1922.3,1922.0,10.40567]
[1741987904936,8.20221,1922.3,1922.1,0.779]
[1741987905139,3.0,1922.3,1922.1,0.779]
[1741987906447,3.0,1922.3,1922.1,5.9816]
[1741987907744,3.0,1922.3,1922.1,5.98154]
[1741987907911,3.0,1922.3,1922.1,6.03356041]
[1741987911251,3.0,1922.3,1922.1,11.23606041]
[1741987911453,3.0,1922.3,1922.1,11.18404]
[1741987912260,3.0,1922.3,1922.2,5.20237]
[1741987913836,6.1,1922.4,1922.2,5.20237]
[1741987914044,9.1,1922.4,1922.2,5.85241534]
[1741987914215,9.1,1922.4,1922.3,5.2021]
[1741987914419,3.0,1922.4,1922.3,0.779]
[1741987914725,6.1,1922.9,1922.7,0.779]
[1741987914928,11.30034,1923.0,1922.7,0.779]
[1741987915125,3.0,1922.9,1922.7,0.779]
[1741987915644,0.55,1922.9,1922.7,0.779]
[1741987915958,3.55,1922.9,1922.7,0.779]
[1741987920462,3.55,1922.9,1922.7,6.578016]
[1741987920966,3.55,1922.9,1922.7,6.577846]
[1741987923971,3.54521475,1922.9,1922.8,5.20074]
[1741987924155,6.1,1923.0,1922.8,5.20074]
[1741987924668,6.1,1923.0,1922.9,5.20047]
[1741987924869,6.1,1923.0,1922.9,6.240579]
[1741987925667,6.1,1923.0,1922.9,1.040109]
[1741987926031,6.1,1923.0,1922.9,6.240579]
[1741987929984,3.0,1923.1,1922.9,11.441049]
[1741987930185,3.0,1923.1,1923.0,5.2002]
[1741987930853,6.1,1923.2,1923.0,11.5443079]
[1741987931386,6.1,1923.2,1923.1,5.19993]
[1741987931683,6.65,1923.3,1923.1,5.19993]
[1741987932889,6.1,1923.3,1923.1,5.19978]
[1741987933191,6.1,1923.3,1923.2,5.19966]
[1741987933351,6.1,1923.3,1923.2,6.2448036]
[1741987933747,6.1,1923.3,1923.2,7.09299422]
[1741987934193,6.1,1923.7,1923.4,5.19888]
[1741987934397,6.1,1923.8,1923.5,0.762]
[1741987934575,6.1,1923.8,1923.6,5.25043989]
[1741987934890,6.1,1923.8,1923.7,5.19831]
[1741987935074,3.0,1924.0,1923.8,5.19797]
[1741987935474,3.0,1924.0,1923.8,5.19786]
[1741987935793,3.0,1924.0,1923.9,5.19777]
[1741987935952,6.1,1924.1,1923.9,5.19777]
[1741987936156,6.1,1924.1,1923.9,5.19773]
[1741987936465,6.1,1924.1,1924.0,5.1975]
[1741987936670,9.1,1924.1,1924.0,5.1975]
[1741987936866,6.1,1924.1,1924.0,5.1975]
[1741987937758,6.1,1924.4,1924.2,10.39354]
[1741987937985,0.815,1924.5,1924.2,5.19673]
[1741987938455,0.55,1924.5,1924.3,5.19667]
[1741987938660,9.01062,1924.7,1924.3,5.19669]
[1741987938888,9.01062,1924.7,1924.3,5.19652]
[1741987939087,0.55,1924.6,1924.4,5.19639]
[1741987939284,0.55,1924.6,1924.3,5.19665]
[1741987939470,0.55,1924.6,1924.4,10.39264]
[1741987939672,3.0,1924.7,1924.5,5.19615]
[1741987939875,3.0,1924.7,1924.6,5.19588]
[1741987940085,4.959,1924.9,1924.6,5.19564]
[1741987940288,4.959,1924.9,1924.8,5.19534]
[1741987940461,0.01,1924.9,1924.7,5.19557]
[1741987940666,0.01,1924.9,1924.6,5.19566]
[1741987941003,0.01,1924.9,1924.7,5.19559]
[1741987941969,0.861,1924.9,1924.4,5.95816]
[1741987942166,0.861,1924.9,1924.4,5.19616]
[1741987942167,0.815,1924.8,1924.4,5.19616]
[1741987942866,6.01047,1924.8,1924.4,5.19616]
[1741987943072,3.0,1924.7,1924.4,5.19616]
[1741987943718,0.815,1924.8,1924.4,10.39241]
[1741987943882,0.815,1924.8,1924.4,5.19616]
[1741987944095,0.815,1924.8,1924.5,5.24804612]
[1741987944593,6.915,1924.8,1924.5,10.44405612]
[1741987945024,6.1,1924.8,1924.6,5.19583]
[1741987945410,6.1,1924.8,1924.7,5.19561]
[1741987946326,6.1,1924.8,1924.6,5.19583]
[1741987946799,6.1,1924.8,1924.6,6.234856]
[1741987947118,6.1,1924.8,1924.6,5.19566]
[1741987947327,6.1,1924.8,1924.6,10.39143]
[1741987947792,6.1,1924.8,1924.6,10.3914]
[1741987947992,6.1,1924.8,1924.5,5.19607]
[1741987948193,6.1,1924.8,1924.5,5.19596]
[1741987948393,6.1,1924.8,1924.6,5.1957]
[1741987948730,6.1,1924.8,1924.5,5.19599]
[1741987949021,3.0,1924.7,1924.4,5.19637]
[1741987949201,3.0,1924.7,1924.4,10.39268]
[1741987949400,3.0,1924.7,1924.5,5.19614]
[1741987949713,3.0,1924.7,1924.4,5.19631]
[1741987949911,3.0,1924.7,1924.4,10.39257]
[1741987950212,3.0,1924.7,1924.5,5.19613]
[1741987950727,3.0,1924.7,1924.6,5.19588]
[1741987953296,3.0,1924.7,1924.3,0.7711]
[1741987953537,9.02195,1924.7,1924.3,5.9677]
[1741987953733,0.8262,1924.6,1924.2,5.19679]
[1741987954047,3.0,1924.4,1924.1,5.19722]
[1741987954247,3.0,1924.4,1924.1,5.19703]
[1741987955327,3.0,1924.4,1923.9,5.19773]
[1741987955328,6.51438,1924.3,1923.9,5.19773]
[1741987955542,6.51438,1924.3,1923.9,6.319374]
[1741987955703,12.61438,1924.3,1923.9,1.121644]
[1741987955903,8.1971,1924.2,1923.8,5.19801]
[1741987956134,0.7676,1924.1,1923.8,5.1979]
[1741987956499,0.7676,1924.1,1923.7,5.19831]
[1741987956698,5.96494,1924.1,1923.7,5.19831]
[1741987957133,0.7676,1924.1,1923.8,0.05197535]
[1741987957336,0.7676,1924.1,1923.8,5.24988535]
[1741987959057,3.0,1924.2,1923.8,0.05197535]
[1741987959216,3.0,1924.2,1924.1,5.19723]
[1741987959615,3.0,1924.2,1924.0,5.19741]
[1741987959812,3.0,1924.2,1924.0,6.318995]
[1741987960155,6.1,1924.3,1924.1,5.19723]
[1741987962170,9.1,1924.4,1924.1,5.19723]
[1741987962449,9.1,1924.4,1924.1,5.19714]
[1741987962971,9.1,1924.4,1924.2,5.19679]
[1741987963248,9.1,1924.4,1924.1,10.39411]
[1741987963548,9.1,1924.4,1924.1,5.19705]